bitfinex-derivatives/quotes_SOLF0:USTF0_20240913
["timestamp","ask_amount","ask_price","bid_price","bid_amount"]
[1726213891262,4.49886785,134.28,134.27,585.1787]
[1726213891463,15.93886785,134.28,134.27,585.1787]
[1726213892063,33.32385077,134.28,134.27,585.1787]
[1726213892270,15.93886785,134.28,134.27,585.1787]
[1726213892462,3.3512,134.28,134.27,585.1787]
[1726213892661,15.93887561,134.28,134.27,585.1787]
[1726213892856,3.3512,134.28,134.27,585.1787]
[1726213893161,7.77904241,134.42,134.27,585.1787]
[1726213893162,14.7907,134.3,134.27,585.1787]
[1726213899686,17.38498292,134.37,134.27,596.6187]
[1726213899878,11.44,134.32,134.27,596.6187]
[1726213900183,14.7901,134.32,134.28,1.5916]
[1726213900379,1.14721635,134.31,134.28,1.5916]
[1726213900576,14.7901,134.32,134.29,1.5554]
[1726213901383,17.38498292,134.37,134.29,1.5554]
[1726213901384,11.44,134.33,134.29,1.5554]
[1726213901885,14.7899,134.33,134.29,1.5554]
[1726213902384,3.3494,134.35,134.29,1.5554]
[1726213902586,3.3494,134.35,134.3,11.44]
[1726213902791,11.44,134.35,134.3,11.44]
[1726213902990,28.82498292,134.35,134.3,14.7903]
[1726213903185,117.48491307,134.4,134.3,11.44]
[1726213903392,11.44,134.36,134.3,11.44]
[1726213903688,11.44,134.36,134.31,3.3501]
[1726213904686,17.37996977,134.39,134.35,11.44]
[1726213904891,1.14658421,134.38,134.37,11.44]
[1726213905086,250.76647777,134.53,134.37,11.44]
[1726213905388,3.3479,134.41,134.38,11.44]
[1726213905686,11.44,134.43,134.38,11.44]
[1726213905687,1.14642651,134.4,134.38,11.44]
[1726213905878,11.44,134.43,134.38,11.44]
[1726213906076,1.14634036,134.42,134.38,11.44]
[1726213906280,11.44,134.41,134.36,13.0027]
[1726213906487,1.14634036,134.4,134.36,13.0027]
[1726213906883,4.49434036,134.4,134.36,13.0027]
[1726213907090,3.348,134.4,134.36,13.0027]
[1726213907978,14.7879,134.41,134.36,13.0027]
[1726213908187,1.14635038,134.4,134.36,13.0027]
[1726213908692,14.7879,134.41,134.36,13.0027]
[1726213908879,1.14635852,134.4,134.36,13.0027]
[1726213909081,14.7879,134.41,134.36,13.0027]
[1726213909384,1.14630776,134.4,134.36,13.0027]
[1726213911191,3.3476,134.42,134.39,11.44]
[1726213911987,1.14584965,134.41,134.39,11.44]
[1726213912896,3.3476,134.42,134.39,11.44]
[1726213913289,1.13742536,134.41,134.39,11.44]
[1726213913491,1.13742399,134.41,134.39,11.44]
[1726213914496,1.13742399,134.41,134.37,11.44]
[1726213914995,4.48522399,134.41,134.36,1.5627]
[1726213915197,14.7878,134.41,134.37,11.44]
[1726213916797,3.348,134.4,134.36,1.5627]
[1726213916997,3.348,134.4,134.36,13.0027]
[1726213922002,3.348,134.4,134.39,585.1787]
[1726213932608,14.788,134.4,134.39,585.1787]
[1726213933016,15.92558929,134.4,134.39,585.1787]
[1726213936109,15.92564036,134.4,134.39,585.1787]
[1726213936614,14.788,134.4,134.39,585.1787]
[1726213936812,15.92564037,134.4,134.39,585.1787]
[1726213937215,3.3485,134.38,134.37,585.1787]
[1726213937416,14.7885,134.38,134.37,585.1787]
[1726213943717,3.3485,134.38,134.37,585.1787]
[1726213943922,14.7885,134.38,134.37,585.1787]
[1726213945119,15.92623458,134.38,134.37,585.1787]
[1726213945622,14.7885,134.38,134.37,585.1787]
[1726213946327,3.67580248,134.41,134.37,585.1787]
[1726213946526,11.44,134.38,134.37,585.1787]
[1726213947023,11.44,134.39,134.37,585.1787]
[1726213948518,14.7884,134.39,134.37,585.1787]
[1726213949121,8.04525732,134.44,134.37,585.1787]
[1726213949426,114.27046872,134.46,134.37,585.1787]
[1726213949427,1.13743088,134.43,134.38,11.44]
[1726213949727,1.13743088,134.42,134.38,12.7358]
[1726213949926,1.13743088,134.41,134.38,12.7358]
[1726213950128,11.44,134.44,134.38,12.7358]
[1726213950331,14.7875,134.42,134.38,1.2958]
[1726213950514,1.13744342,134.41,134.38,1.2958]
[1726213951228,4.48534342,134.41,134.38,1.2958]
[1726213951430,1.13744342,134.4,134.38,1.2958]
[1726213951630,3.3479,134.41,134.38,1.2958]
[1726213951928,14.7876,134.42,134.38,1.2958]
[1726213952129,1.13742004,134.41,134.38,1.2958]
[1726213952323,11.44,134.42,134.38,1.2958]
[1726213952631,1.13745233,134.41,134.38,1.2958]
[1726213952832,4.48535233,134.41,134.38,1.2958]
[1726213953034,3.3479,134.41,134.38,1.2958]
[1726213953332,4.48549992,134.4,134.38,1.2958]
[1726213953529,3.348,134.4,134.38,1.2958]
[1726213953720,11.44,134.41,134.38,1.2958]
[1726213953918,1.13749782,134.4,134.38,1.2958]
[1726213954130,11.44,134.41,134.38,1.2958]
[1726213954321,1.13746814,134.4,134.38,1.2958]
[1726213954521,11.44,134.41,134.38,1.2958]
[1726213954722,1.13746767,134.4,134.38,1.2958]
[1726213956331,14.7878,134.41,134.38,1.2958]
[1726213956523,1.13750004,134.4,134.38,1.2958]
[1726213960431,14.7878,134.41,134.38,1.2958]
[1726213960636,1.13750004,134.4,134.38,1.2958]
[1726213961037,14.7878,134.41,134.38,2.0889]
[1726213961237,1.13750005,134.4,134.38,2.0889]
[1726213961839,4.48560005,134.4,134.38,2.0889]
[1726213962141,3.3481,134.4,134.38,2.0889]
[1726213965342,14.7879,134.41,134.38,2.0889]
[1726213965535,1.13746824,134.4,134.38,2.0889]
[1726213966232,14.7879,134.41,134.38,2.0889]
[1726213967236,1.13746713,134.4,134.38,587.2676]
[1726213967433,14.7879,134.41,134.38,587.2676]
[1726213968340,1.13746696,134.4,134.38,587.2676]
[1726213968645,14.7879,134.41,134.38,587.2676]
[1726213969345,1.13746858,134.4,134.38,587.2676]
[1726213969542,14.7879,134.41,134.38,587.2676]
[1726213970744,1.13746873,134.4,134.38,587.2676]
[1726213971043,14.7879,134.41,134.38,587.2676]
[1726213971263,1.13746873,134.4,134.38,586.4745]
[1726213972246,12.57746873,134.4,134.38,586.4745]
[1726213972546,11.44,134.4,134.38,586.4745]
[1726213973342,14.788,134.4,134.38,586.4745]
[1726213974248,11.44,134.4,134.38,586.4745]
[1726213976544,3.3479,134.41,134.38,586.4745]
[1726213976848,14.7879,134.41,134.38,586.4745]
[1726213982656,1.13746662,134.4,134.38,586.4745]
[1726213983551,3.348,134.4,134.38,586.4745]
[1726213984254,11.44,134.41,134.38,586.4745]
[1726213984453,1.13750033,134.4,134.38,586.4745]
[1726213984657,11.44,134.41,134.38,586.4745]
[1726213984658,14.7879,134.41,134.38,586.4745]
[1726213984857,1.13750033,134.4,134.38,586.4745]
[1726213985052,14.7879,134.41,134.38,586.4745]
[1726213986560,1.13746803,134.4,134.38,586.4745]
[1726213986853,17.37534468,134.45,134.39,11.44]
[1726213987056,11.44,134.48,134.43,11.44]
[1726213987357,1.13702226,134.47,134.43,11.44]
[1726213987557,1.13702226,134.47,134.44,1.3012]
[1726213987755,11.44,134.48,134.44,1.3012]
[1726213987951,1.1369311,134.47,134.44,1.3012]
[1726213988354,11.44,134.48,134.44,1.3012]
[1726213988554,11.44,134.47,134.44,1.3012]
[1726213993254,6.6861,134.6,134.44,1.3012]
[1726213993255,6.6861,134.6,134.46,11.44]
[1726213993455,11.44,134.53,134.48,11.44]
[1726213993656,1.13646085,134.52,134.48,11.44]
[1726213994456,14.7849,134.53,134.48,11.44]
[1726213994964,3.3449,134.53,134.48,11.44]
[1726213995161,12.57649245,134.52,134.48,11.44]
[1726213995360,14.7851,134.52,134.46,11.44]
[1726213996566,14.7851,134.52,134.46,14.7865]
[1726213996965,1.13649769,134.51,134.46,14.7865]
[1726213997365,11.44,134.52,134.47,14.7863]
[1726213997561,11.44,134.52,134.47,11.44]
[1726213997755,1.3142,134.62,134.51,11.44]
[1726213997962,1.3142,134.62,134.51,14.7852]
[1726213997963,11.44,134.57,134.51,14.7852]
[1726213998265,1.13612124,134.56,134.53,11.44]
[1726213998465,1.13609349,134.55,134.53,11.44]
[1726213998663,14.7837,134.58,134.53,11.44]
[1726213998857,15.91983723,134.57,134.51,11.44]
[1726213999054,1.13603723,134.56,134.51,11.44]
[1726213999470,12.57603723,134.56,134.51,11.44]
[1726213999670,11.44,134.56,134.51,11.44]
[1726214000667,1.13609877,134.55,134.51,11.44]
[1726214001169,14.784,134.56,134.5,3.3453]
[1726214001464,11.44,134.53,134.48,11.44]
[1726214001671,22.36,134.7,134.52,11.44]
[1726214001871,3.3433,134.59,134.54,11.44]
[1726214002072,1.1359282,134.58,134.54,11.44]
[1726214003263,3.3433,134.59,134.54,11.44]
[1726214004272,11.44,134.58,134.54,11.44]
[1726214004865,11.44,134.58,134.53,1.3409]
[1726214005074,11.44,134.58,134.53,12.7809]
[1726214005566,14.7836,134.58,134.53,12.7809]
[1726214008576,11.44,134.58,134.53,12.7809]
[1726214009070,14.7835,134.58,134.53,12.7809]
[1726214011168,14.7838,134.57,134.53,12.7809]
[1726214011469,14.7838,134.57,134.53,1.3409]
[1726214012567,3.344,134.56,134.52,11.44]
[1726214012779,14.784,134.56,134.51,1.3647]
[1726214012974,14.784,134.56,134.51,12.8047]
[1726214014375,14.7843,134.55,134.51,1.3647]
[1726214017279,3.70137597,134.62,134.53,11.44]
[1726214017472,11.44,134.59,134.54,11.44]
[1726214017870,11.44,134.57,134.53,11.44]
[1726214021885,14.7838,134.57,134.52,3.3448]
[1726214022091,14.7838,134.57,134.53,11.44]
[1726214022392,3.3431,134.6,134.56,11.44]
[1726214023182,14.7829,134.61,134.53,5.1217507]
[1726214023380,14.7829,134.61,134.56,11.44]
[1726214023887,11.44,134.6,134.56,11.44]
[1726214024085,11.44,134.6,134.53,1.3711]
[1726214024285,11.44,134.59,134.53,1.3711]
[1726214024486,11.44,134.59,134.54,11.44]
[1726214024892,3.3436,134.58,134.54,11.44]
[1726214025396,6.6812,134.7,134.56,11.44]
[1726214025594,11.44,134.62,134.57,11.44]
[1726214025991,3.9214,134.69,134.53,1.3711]
[1726214025992,11.44,134.6,134.53,1.3711]
[1726214026195,11.44,134.6,134.55,11.44]
[1726214026684,14.7832,134.6,134.55,11.44]
[1726214026888,3.3432,134.6,134.55,11.44]
[1726214027396,3.3432,134.6,134.54,3.3443]
[1726214027597,3.3432,134.6,134.55,11.44]
[1726214029592,14.7833,134.59,134.55,11.44]
[1726214030407,11.44,134.59,134.55,14.7841]
[1726214030706,11.44,134.59,134.55,11.44]
[1726214032115,11.44,134.59,134.51,1.3647]
[1726214032299,11.44,134.58,134.54,11.44]
[1726214032500,11.44,134.58,134.51,1.3647]
[1726214032699,11.44,134.57,134.53,11.44]
[1726214033708,14.7839,134.57,134.53,11.44]
[1726214036410,3.3442,134.56,134.51,1.3647]
[1726214036604,11.44,134.55,134.5,11.44]
[1726214037202,11.44,134.55,134.49,1.3601]
[1726214037408,11.44,134.53,134.49,11.44]
[1726214037805,14.7849,134.53,134.49,11.44]
[1726214039308,3.3451,134.52,134.49,11.44]
[1726214040607,11.44,134.51,134.46,3.3464]
[1726214040806,11.44,134.51,134.47,11.44]
[1726214041010,11.44,134.5,134.47,11.44]
[1726214041207,11.44,134.5,134.45,11.44]
[1726214041407,4.1624,134.55,134.43,1.4214]
[1726214041408,11.44,134.49,134.43,1.4214]
[1726214041606,11.44,134.47,134.42,1.3045]
[1726214042006,11.44,134.47,134.42,12.7445]
[1726214042208,14.7865,134.47,134.42,12.7445]
[1726214042409,11.44,134.47,134.42,12.7445]
[1726214042810,11.44,134.46,134.42,12.7445]
[1726214043609,14.7867,134.46,134.42,12.7445]
[1726214044222,3.3468,134.45,134.42,1.3045]
[1726214044517,11.44,134.46,134.42,12.7445]
[1726214045011,14.7867,134.46,134.42,12.7445]
[1726214046414,5.14545964,134.5,134.43,11.44]
[1726214046415,11.44,134.48,134.43,11.44]
[1726214047813,14.7861,134.48,134.43,14.7872]
[1726214048412,1.4163,134.5,134.4,2.629]
[1726214048610,11.44,134.44,134.4,2.629]
[1726214049710,11.44,134.44,134.4,5.9769]
[1726214051117,14.787,134.44,134.4,5.9769]
[1726214051319,3.347,134.44,134.4,17.4169]
[1726214051616,2.6535,134.49,134.42,11.44]
[1726214052113,14.7863,134.47,134.42,14.7873]
[1726214052423,1.4163,134.5,134.44,11.44]
[1726214052610,11.44,134.49,134.44,11.44]
[1726214053403,14.786,134.49,134.44,14.787]
[1726214053808,1.4206,134.53,134.48,11.44]
[1726214054013,1.13627122,134.52,134.49,11.44]
[1726214054222,11.44,134.52,134.48,11.44]
[1726214054715,14.7852,134.52,134.48,11.44]
[1726214054915,14.7852,134.52,134.46,3.3463]
[1726214054916,2.6155,134.55,134.49,11.44]
[1726214055116,2.6155,134.55,134.48,11.44]
[1726214055117,11.44,134.53,134.48,11.44]
[1726214055714,3.3448,134.53,134.48,11.44]
[1726214055913,11.44,134.54,134.49,11.44]
[1726214056122,12.7367,134.55,134.49,11.44]
[1726214056308,1.13609385,134.54,134.49,11.44]
[1726214056514,1.13609385,134.54,134.5,11.44]
[1726214056805,11.44,134.55,134.5,11.44]
[1726214057717,118.02663793,134.56,134.51,11.44]
[1726214058017,11.44,134.57,134.52,11.44]
[1726214059124,1.4117,134.61,134.51,3.3452]
[1726214059125,11.44,134.56,134.51,11.44]
[1726214059313,1.4117,134.61,134.53,11.44]
[1726214059511,1.13572438,134.6,134.53,11.44]
[1726214059716,11.44,134.58,134.53,11.44]
[1726214060030,1.4117,134.61,134.52,11.44]
[1726214060215,1.13581507,134.6,134.52,11.44]
[1726214060414,11.44,134.57,134.52,11.44]
[1726214061126,14.7839,134.57,134.52,11.44]
[1726214062725,11.44,134.57,134.52,11.44]
[1726214064022,11.44,134.57,134.52,14.785]
[1726214064522,3.3435,134.58,134.53,11.44]
[1726214064720,14.7835,134.58,134.53,11.44]
[1726214065716,1.321,134.63,134.47,158.98119119]
[1726214065915,12.57552251,134.62,134.56,11.44]
[1726214066118,3.3428,134.61,134.56,11.44]
[1726214066521,14.7828,134.61,134.56,11.44]
[1726214066725,3.65279453,134.67,134.58,11.44]
[1726214066924,11.44,134.62,134.58,11.44]
[1726214067627,11.44,134.62,134.57,3.3437]
[1726214067628,11.44,134.62,134.57,14.7837]
[1726214067818,11.44,134.62,134.57,11.44]
[1726214068731,3.3428,134.61,134.57,11.44]
[1726214069319,1.3462,134.66,134.6,11.44]
[1726214069522,11.44,134.64,134.58,11.44]
[1726214069822,11.44,134.61,134.54,2.6815]
[1726214070025,11.44,134.61,134.56,11.44]
[1726214070532,11.44,134.61,134.57,11.44]
[1726214070830,14.783,134.61,134.57,11.44]
[1726214071517,11.44,134.6,134.55,11.44]
[1726214073539,14.7831,134.6,134.55,11.44]
[1726214075033,3.3433,134.59,134.54,6.0258]
[1726214075438,3.3433,134.59,134.55,11.44]
[1726214077138,3.3433,134.59,134.57,11.44]
[1726214078138,3.3433,134.59,134.54,6.0258]
[1726214078331,3.3433,134.59,134.56,11.44]
[1726214080225,11.44,134.59,134.55,11.44]
[1726214081038,3.3437,134.58,134.55,11.44]
[1726214082240,3.3438,134.57,134.53,1.3682]
[1726214082544,11.44,134.59,134.54,11.44]
[1726214083037,3.3437,134.58,134.54,11.44]
[1726214084745,11.44,134.59,134.56,11.44]
[1726214085247,14.7834,134.59,134.56,11.44]
[1726214085851,11.44,134.59,134.56,11.44]
[1726214086455,14.7834,134.59,134.56,11.44]
[1726214086843,1.3462,134.66,134.56,11.44]
[1726214087248,14.7832,134.6,134.56,11.44]
[1726214090655,11.44,134.6,134.56,11.44]
[1726214091459,14.7832,134.6,134.56,11.44]
[1726214092257,3.3429,134.61,134.56,14.784]
[1726214092556,14.7829,134.61,134.56,14.784]
[1726214093565,3.343,134.6,134.56,11.44]
[1726214094063,3.3429,134.61,134.56,14.7838]
[1726214094261,14.7829,134.61,134.56,14.7838]
[1726214094455,11.44,134.61,134.53,4.0588]
[1726214094657,3.3432,134.6,134.56,11.44]
[1726214095754,14.7832,134.6,134.56,14.7839]
[1726214096466,14.7832,134.6,134.56,11.44]
[1726214096958,1.3462,134.66,134.57,14.7838]
[1726214096959,3.3429,134.61,134.57,14.7838]
[1726214097161,14.7829,134.61,134.57,14.7838]
[1726214097755,3.3432,134.6,134.57,11.44]
[1726214099463,3.3432,134.6,134.56,15.5771]
[1726214099963,14.7832,134.6,134.56,15.5771]
[1726214100153,11.44,134.6,134.56,0.7931]
[1726214100462,11.44,134.59,134.56,0.7931]
[1726214100759,3.3437,134.58,134.56,0.7931]
[1726214100960,11.44,134.59,134.56,0.7931]
[1726214101165,3.3436,134.58,134.56,0.7931]
[1726214101862,3.3429,134.61,134.56,12.2331]
[1726214102051,11.44,134.61,134.56,12.2331]
[1726214103268,14.7829,134.61,134.56,12.2331]
[1726214103562,11.44,134.61,134.56,12.2331]
[1726214104461,3.3431,134.6,134.56,15.577]
[1726214105555,3.3431,134.6,134.57,3.3437]
[1726214105864,14.7829,134.61,134.57,3.3437]
[1726214106073,11.44,134.61,134.56,12.2331]
[1726214106375,3.3432,134.6,134.56,15.577]
[1726214107270,3.3434,134.59,134.56,11.44]
[1726214109367,3.3435,134.58,134.56,11.44]
[1726214109875,3.3434,134.59,134.56,11.44]
[1726214111966,3.3432,134.6,134.57,11.44]
[1726214112170,11.44,134.62,134.57,11.44]
[1726214112470,3.3429,134.61,134.57,14.7837]
[1726214113267,3.3429,134.61,134.58,14.7835]
[1726214113478,3.3426,134.62,134.58,14.7835]
[1726214114166,3.3426,134.62,134.58,11.44]
[1726214114367,1.3462,134.66,134.59,14.7833]
[1726214114368,3.3424,134.63,134.59,14.7833]
[1726214114774,11.44,134.64,134.59,11.44]
[1726214114968,3.3425,134.62,134.59,11.44]
[1726214116176,3.3424,134.63,134.59,14.7833]
[1726214119278,3.3424,134.63,134.59,3.3433]
[1726214119485,3.3424,134.63,134.6,11.44]
[1726214119979,3.3426,134.62,134.6,11.44]
[1726214120180,3.3426,134.62,134.58,3.3435]
[1726214120365,3.3426,134.62,134.58,14.7835]
[1726214120567,3.3428,134.61,134.57,3.3437]
[1726214120768,11.44,134.62,134.53,4.0588]
[1726214120971,11.44,134.63,134.58,11.44]
[1726214121171,11.44,134.63,134.59,11.44]
[1726214121572,3.3427,134.62,134.57,3.3436]
[1726214121771,3.3427,134.62,134.58,11.44]
[1726214122178,3.3428,134.61,134.58,11.44]
[1726214122681,3.3428,134.61,134.57,3.3436]
[1726214122874,3.3428,134.61,134.58,11.44]
[1726214123874,3.3426,134.62,134.58,11.44]
[1726214124483,3.3426,134.62,134.58,14.7835]
[1726214125068,3.3428,134.61,134.58,11.44]
[1726214125779,11.44,134.63,134.58,14.7834]
[1726214125780,3.3426,134.62,134.58,14.7834]
[1726214125975,1.3462,134.66,134.59,11.44]
[1726214126175,11.44,134.64,134.59,11.44]
[1726214126378,3.3425,134.63,134.59,11.44]
[1726214126774,2.6709,134.68,134.59,11.44]
[1726214126981,11.44,134.66,134.61,11.44]
[1726214127981,3.3419,134.65,134.61,11.44]
[1726214128480,11.44,134.65,134.56,6.74973654]
[1726214128787,11.44,134.65,134.59,11.44]
[1726214130287,3.3421,134.64,134.59,14.7831]
[1726214130884,14.7819,134.65,134.61,11.44]
[1726214131382,3.3419,134.65,134.61,11.44]
[1726214132389,3.3419,134.65,134.53,4.0588]
[1726214132390,11.44,134.67,134.62,11.44]
[1726214132989,2.6709,134.68,134.61,11.44]
[1726214132990,14.7818,134.65,134.61,11.44]
[1726214133390,14.7818,134.65,134.58,1.4021]
[1726214133588,14.7818,134.65,134.6,11.44]
[1726214133887,11.44,134.65,134.6,11.44]
[1726214134092,11.44,134.65,134.6,14.7829]
[1726214134786,14.7819,134.65,134.6,14.7829]
[1726214134996,14.7819,134.65,134.6,11.44]
[1726214135690,3.3421,134.64,134.6,11.44]
[1726214139385,3.3421,134.64,134.61,11.44]
[1726214139786,11.44,134.64,134.58,1.4021]
[1726214140095,2.6709,134.68,134.58,12.8421]
[1726214140096,11.44,134.63,134.58,12.8421]
[1726214140588,3.3426,134.62,134.58,12.8421]
[1726214141590,3.3429,134.61,134.58,12.8421]
[1726214141787,11.44,134.6,134.56,0.7931]
[1726214142299,3.3435,134.58,134.56,0.7931]
[1726214142784,1.2989,134.67,134.57,11.44]
[1726214142981,11.44,134.61,134.57,11.44]
[1726214143696,3.3432,134.6,134.57,11.44]
[1726214144497,3.3433,134.59,134.56,0.7931]
[1726214146289,3.3438,134.57,134.54,11.44]
[1726214146488,11.44,134.58,134.54,11.44]
[1726214146684,3.3432,134.6,134.55,14.7841]
[1726214146989,11.44,134.61,134.55,11.44]
[1726214147390,3.3433,134.59,134.55,11.44]
[1726214148892,3.3433,134.59,134.55,14.7842]
[1726214149201,3.3433,134.59,134.55,11.44]
[1726214149400,3.3433,134.59,134.55,14.7843]
[1726214149696,11.44,134.61,134.55,11.44]
[1726214150202,3.3432,134.6,134.56,3.344]
[1726214150497,11.44,134.61,134.55,11.44]
[1726214150700,109.85081369,134.65,134.56,11.44]
[1726214150996,11.44,134.62,134.58,11.44]
[1726214151294,14.7826,134.62,134.58,11.44]
[1726214152104,3.3428,134.61,134.58,11.44]
[1726214154093,3.3426,134.62,134.58,11.44]
[1726214154392,11.44,134.63,134.59,11.44]
[1726214154594,14.7824,134.63,134.59,11.44]
[1726214154996,11.44,134.63,134.59,11.44]
[1726214155799,3.3425,134.62,134.59,11.44]
[1726214155994,11.44,134.6,134.54,21.92744368]
[1726214156191,11.44,134.6,134.55,6.75402891]
[1726214156388,11.44,134.6,134.55,11.44]
[1726214156592,109.85081369,134.65,134.55,11.44]
[1726214156793,11.44,134.61,134.55,11.44]
[1726214157292,109.85081369,134.65,134.55,3.3441]
[1726214157293,14.7834,134.59,134.55,3.3441]
[1726214157897,3.3436,134.58,134.54,14.7845]
[1726214158605,3.3438,134.57,134.54,11.44]
[1726214159302,3.3438,134.57,134.53,6.0988]
[1726214159504,3.3438,134.57,134.54,11.44]
[1726214160399,3.3438,134.57,134.54,14.7845]
[1726214160602,3.3436,134.58,134.54,14.7845]
[1726214160899,11.44,134.59,134.54,14.7845]
[1726214161807,3.3438,134.57,134.54,11.44]
[1726214164696,11.44,134.59,134.54,11.44]
[1726214165199,3.3439,134.57,134.54,14.7845]
[1726214165392,11.44,134.59,134.54,14.7845]
[1726214165596,3.3436,134.58,134.54,14.7845]
[1726214166997,3.3438,134.57,134.54,14.7845]
[1726214167706,3.3438,134.57,134.54,11.44]
[1726214170511,11.44,134.59,134.54,14.7844]
[1726214171011,3.3438,134.57,134.54,11.44]
[1726214172214,3.3438,134.57,134.54,12.2331]
[1726214172517,3.3441,134.56,134.54,12.2331]
[1726214172910,3.3441,134.56,134.54,0.7931]
[1726214173108,11.44,134.56,134.54,0.7931]
[1726214174706,3.3443,134.55,134.54,0.7931]
[1726214175018,11.44,134.56,134.54,0.7931]
[1726214175602,14.784,134.56,134.54,0.7931]
[1726214176602,6.38082088,134.62,134.54,0.7931]
[1726214176603,14.7839,134.57,134.54,0.7931]
[1726214179517,11.44,134.57,134.54,0.7931]
[1726214180205,14.7838,134.57,134.54,0.7931]
[1726214180399,11.44,134.57,134.54,0.7931]
[1726214180917,11.44,134.56,134.54,0.7931]
[1726214181898,14.7841,134.56,134.54,0.7931]
[1726214182611,14.7841,134.56,134.52,14.7848]
[1726214183013,3.3441,134.56,134.52,14.7848]
[1726214183312,6.38082088,134.62,134.53,11.44]
[1726214183618,11.44,134.58,134.53,11.44]
[1726214183811,11.44,134.58,134.53,14.7846]
[1726214184813,3.3438,134.57,134.53,14.7846]
[1726214185205,11.44,134.58,134.54,3.3445]
[1726214185603,3.3434,134.59,134.54,3.3445]
[1726214185801,11.44,134.58,134.54,3.3445]
[1726214186409,11.44,134.58,134.55,3.3443]
[1726214186603,11.44,134.58,134.51,1.2995]
[1726214186604,11.44,134.58,134.54,11.44]
[1726214187010,11.44,134.58,134.54,14.7844]
[1726214187524,3.3436,134.58,134.54,14.7844]
[1726214191921,14.7833,134.59,134.55,3.3442]
[1726214192120,14.7833,134.59,134.54,11.44]
[1726214192627,3.3436,134.58,134.54,14.7844]
[1726214193615,1.3799,134.62,134.51,1.2995]
[1726214193815,11.44,134.6,134.55,11.44]
[1726214194716,3.3433,134.59,134.55,11.44]
[1726214195616,3.3433,134.59,134.55,14.7842]
[1726214196817,1.3799,134.62,134.56,14.7839]
[1726214197118,11.44,134.61,134.56,14.7839]
[1726214197312,3.3432,134.6,134.56,11.44]
[1726214198425,3.3432,134.6,134.56,14.7839]
[1726214200320,3.3432,134.6,134.56,3.3439]
[1726214200528,3.3432,134.6,134.57,11.44]
[1726214201831,11.44,134.61,134.57,11.44]
[1726214202026,11.44,134.62,134.58,11.44]
[1726214202536,14.7826,134.62,134.58,11.44]
[1726214206526,3.3426,134.62,134.59,11.44]
[1726214209428,233.6792,134.74,134.6,11.44]
[1726214209721,11.44,134.65,134.6,11.44]
[1726214210631,3.3423,134.63,134.6,11.44]
[1726214211344,11.44,134.65,134.6,11.44]
[1726214212230,3.71385027,134.67,134.6,11.44]
[1726214212433,11.44,134.65,134.6,11.44]
[1726214213133,11.44,134.64,134.6,11.44]
[1726214214337,3.3424,134.63,134.6,11.44]
[1726214216139,3.3428,134.62,134.59,11.44]
[1726214225558,3.3424,134.63,134.6,11.44]